[Event "*** Titled Tuesday Blitz"]
[Site "Chess.com"]
[Date "2021.02.09"]
[Round "9"]
[White "Margency"]
[Black "Anton_Demchenko"]
[Result "0-1"]
[WhiteElo "2647"]
[BlackElo "2850"]
[TimeControl "180+1"]
[EndTime "11:46:52 PST"]
[Termination "Anton_Demchenko won by resignation"]

1. e4 {[%clk 0:03:00.9]} 1... e5 {[%clk 0:02:59.1]} 2. Nf3 {[%clk 0:03:00.7]}
2... Nc6 {[%clk 0:02:59.7]} 3. Bc4 {[%clk 0:03:00.9]} 3... Nf6 {[%clk
0:02:59.1]} 4. d3 {[%clk 0:03:01.3]} 4... Be7 {[%clk 0:02:59.3]} 5. O-O {[%clk
0:03:01.7]} 5... O-O {[%clk 0:02:59.9]} 6. Re1 {[%clk 0:03:02.3]} 6... d6 {[%clk
0:03:00.5]} 7. a4 {[%clk 0:03:02.8]} 7... Kh8 {[%clk 0:03:00.6]} 8. Nc3 {[%clk
0:02:59.6]} 8... Bg4 {[%clk 0:02:59.4]} 9. h3 {[%clk 0:02:57.7]} 9... Bh5 {[%clk
0:02:59.3]} 10. Be3 {[%clk 0:02:50.3]} 10... Qc8 {[%clk 0:02:58.4]} 11. a5
{[%clk 0:02:43.8]} 11... a6 {[%clk 0:02:57.7]} 12. Qe2 {[%clk 0:02:18.9]} 12...
Nd4 {[%clk 0:02:38.9]} 13. Bxd4 {[%clk 0:02:17.8]} 13... exd4 {[%clk 0:02:39.4]}
14. Nd5 {[%clk 0:02:03.1]} 14... Nxd5 {[%clk 0:02:38.4]} 15. Bxd5 {[%clk
0:02:03]} 15... c6 {[%clk 0:02:38.6]} 16. Bb3 {[%clk 0:02:02.5]} 16... d5 {[%clk
0:02:32.3]} 17. exd5 {[%clk 0:01:56.2]} 17... Bb4 {[%clk 0:02:31.5]} 18. dxc6
{[%clk 0:01:40.7]} 18... Bxe1 {[%clk 0:01:23]} 19. Rxe1 {[%clk 0:01:38.1]} 19...
bxc6 {[%clk 0:00:56.3]} 20. g4 {[%clk 0:01:13.3]} 20... Bg6 {[%clk 0:00:56.3]}
21. Qe5 {[%clk 0:01:08.6]} 21... c5 {[%clk 0:00:51.4]} 22. Qf4 {[%clk
0:01:03.5]} 22... f6 {[%clk 0:00:45.3]} 23. Re7 {[%clk 0:00:58.7]} 23... Qd8
{[%clk 0:00:38.2]} 24. Rb7 {[%clk 0:00:34.5]} 24... Rb8 {[%clk 0:00:37.8]} 25.
Ra7 {[%clk 0:00:29.1]} 25... Bxd3 {[%clk 0:00:23.7]} 26. Kg2 {[%clk 0:00:15]}
26... Bb5 {[%clk 0:00:21.6]} 27. Rc7 {[%clk 0:00:11.1]} 27... Rc8 {[%clk
0:00:20.9]} 28. Rxc8 {[%clk 0:00:10.7]} 28... Qxc8 {[%clk 0:00:21.8]} 29. Kg3
{[%clk 0:00:11.1]} 29... c4 {[%clk 0:00:20.3]} 30. Ba2 {[%clk 0:00:11.4]} 30...
d3 {[%clk 0:00:20.7]} 31. cxd3 {[%clk 0:00:11.5]} 31... cxd3 {[%clk 0:00:21.6]}
32. Bd5 {[%clk 0:00:10.7]} 32... Rd8 {[%clk 0:00:19.5]} 33. Be4 {[%clk
0:00:10.4]} 33... Qb8 {[%clk 0:00:13.1]} 34. Nd2 {[%clk 0:00:08.9]} 34... g5
{[%clk 0:00:10.9]} 35. Qxb8 {[%clk 0:00:08.2]} 35... Rxb8 {[%clk 0:00:11.8]} 36.
Kf3 {[%clk 0:00:08.9]} 36... Rc8 {[%clk 0:00:10.1]} 37. Ke3 {[%clk 0:00:08.8]}
37... Rc2 {[%clk 0:00:10.7]} 38. b3 {[%clk 0:00:09.4]} 38... Ra2 {[%clk
0:00:10.9]} 39. b4 {[%clk 0:00:08.6]} 39... Rb2 {[%clk 0:00:11]} 40. f3 {[%clk
0:00:08.4]} 40... Rxb4 {[%clk 0:00:10.6]} 41. Bxd3 {[%clk 0:00:08.9]} 41... Ra4
{[%clk 0:00:07.5]} 42. Bf5 {[%clk 0:00:06]} 42... Ra3+ {[%clk 0:00:07]} 43. Kf2
{[%clk 0:00:05.2]} 43... Rxa5 {[%clk 0:00:07.5]} 44. Ne4 {[%clk 0:00:05.8]}
44... Kg7 {[%clk 0:00:07.3]} 45. Nd6 {[%clk 0:00:06.4]} 45... Ra2+ {[%clk
0:00:07.4]} 46. Ke3 {[%clk 0:00:06.6]} 46... Ra3+ {[%clk 0:00:06.8]} 47. Kf2
{[%clk 0:00:06.9]} 47... Rb3 {[%clk 0:00:06.8]} 48. Be4 {[%clk 0:00:07.1]} 48...
Bd7 {[%clk 0:00:05.1]} 49. Nb7 {[%clk 0:00:03.6]} 49... Rb6 {[%clk 0:00:04.3]}
50. Nc5 {[%clk 0:00:04.1]} 50... Bc8 {[%clk 0:00:04.6]} 51. Ke3 {[%clk
0:00:04.1]} 51... a5 {[%clk 0:00:04.3]} 52. Kd4 {[%clk 0:00:04.7]} 52... Rb4+
{[%clk 0:00:03.5]} 53. Kd5 {[%clk 0:00:04.4]} 53... Rb2 {[%clk 0:00:03.5]} 54.
Kd6 {[%clk 0:00:04.6]} 54... Rb4 {[%clk 0:00:01.9]} 55. Kc7 {[%clk 0:00:04.1]}
55... Rc4 {[%clk 0:00:01.6]} 56. Kd6 {[%clk 0:00:04.6]} 56... a4 {[%clk
0:00:02]} 57. Bd5 {[%clk 0:00:05.1]} 57... Rxc5 {[%clk 0:00:01.4]} 58. Kxc5
{[%clk 0:00:05.3]} 58... a3 {[%clk 0:00:02.3]} 59. Kb4 {[%clk 0:00:05.7]} 59...
Kf8 {[%clk 0:00:02.1]} 60. Kxa3 {[%clk 0:00:06.1]} 60... Ke7 {[%clk 0:00:02.9]}
61. Kb4 {[%clk 0:00:06.7]} 61... Kd6 {[%clk 0:00:03.8]} 62. Be4 {[%clk
0:00:07.4]} 62... h6 {[%clk 0:00:03.6]} 63. Kc4 {[%clk 0:00:07.9]} 63... Ke5
{[%clk 0:00:04.5]} 64. Kc5 {[%clk 0:00:08.1]} 64... Bd7 {[%clk 0:00:04]} 65. Kb6
{[%clk 0:00:07.6]} 65... Ba4 {[%clk 0:00:04.4]} 66. Kc7 {[%clk 0:00:06.7]} 66...
Bb5 {[%clk 0:00:03.8]} 67. Kd8 {[%clk 0:00:06]} 67... Kd6 {[%clk 0:00:04.2]} 68.
Bb7 {[%clk 0:00:03.3]} 68... Bd7 {[%clk 0:00:04.3]} 69. Be4 {[%clk 0:00:03.7]}
69... Ba4 {[%clk 0:00:04.3]} 70. Kc8 {[%clk 0:00:03.5]} 70... Bb5 {[%clk
0:00:04.5]} 71. Kd8 {[%clk 0:00:04]} 71... Ke5 {[%clk 0:00:02.7]} 72. Ke7 {[%clk
0:00:04.1]} 72... Bf1 {[%clk 0:00:03.1]} 73. Kf7 {[%clk 0:00:04.3]} 73... Bxh3
{[%clk 0:00:03.8]} 74. Kg6 {[%clk 0:00:04.7]} 74... Bg2 {[%clk 0:00:02.8]} 75.
Kxh6 {[%clk 0:00:04.7]} 75... Kf4 {[%clk 0:00:03.5]} 76. Kg6 {[%clk 0:00:04.7]}
76... Bxf3 {[%clk 0:00:04]} 77. Bxf3 {[%clk 0:00:02.4]} 77... Kxf3 {[%clk
0:00:04.2]} 78. Kf5 {[%clk 0:00:02.7]} 78... Kg3 {[%clk 0:00:04.6]} 79. Kxf6
{[%clk 0:00:03]} 79... Kxg4 {[%clk 0:00:05.5]} 80. Ke5 {[%clk 0:00:03.8]} 80...
Kf3 {[%clk 0:00:05.7]} 0-1

[Event "*** Titled Tuesday Blitz"]
[Site "Chess.com"]
[Date "2021.02.09"]
[Round "9"]
[White "GoltsevDmitry2000"]
[Black "ChristopherYoo"]
[Result "1/2-1/2"]
[WhiteElo "2735"]
[BlackElo "2872"]
[TimeControl "180+1"]
[EndTime "11:47:12 PST"]
[Termination "Game drawn - insufficient material"]

1. c4 {[%clk 0:02:55.7]} 1... e6 {[%clk 0:02:50.6]} 2. g3 {[%clk 0:02:55.8]}
2... d5 {[%clk 0:02:50.1]} 3. Bg2 {[%clk 0:02:51.9]} 3... Nf6 {[%clk 0:02:50.2]}
4. Nc3 {[%clk 0:02:45.5]} 4... Be7 {[%clk 0:02:48.4]} 5. d4 {[%clk 0:02:38.6]}
5... O-O {[%clk 0:02:46.6]} 6. Nf3 {[%clk 0:02:37.3]} 6... b6 {[%clk 0:02:35.4]}
7. Ne5 {[%clk 0:02:29.8]} 7... Bb7 {[%clk 0:02:34.2]} 8. O-O {[%clk 0:02:29.6]}
8... Nbd7 {[%clk 0:02:09.3]} 9. Qa4 {[%clk 0:02:26]} 9... c5 {[%clk 0:02:05.3]}
10. Nxd7 {[%clk 0:02:23.1]} 10... Nxd7 {[%clk 0:01:53.6]} 11. cxd5 {[%clk
0:02:23]} 11... cxd4 {[%clk 0:01:53.5]} 12. Qxd4 {[%clk 0:02:20.1]} 12... Bf6
{[%clk 0:01:53.2]} 13. Qd1 {[%clk 0:02:18.8]} 13... Bxc3 {[%clk 0:01:51.1]} 14.
bxc3 {[%clk 0:02:19.1]} 14... Bxd5 {[%clk 0:01:44.1]} 15. Bxd5 {[%clk
0:02:16.6]} 15... exd5 {[%clk 0:01:45]} 16. Qxd5 {[%clk 0:02:17.3]} 16... Re8
{[%clk 0:01:44.1]} 17. Rd1 {[%clk 0:02:12]} 17... Nc5 {[%clk 0:01:22.4]} 18.
Qxd8 {[%clk 0:02:10.3]} 18... Raxd8 {[%clk 0:01:23.3]} 19. Rxd8 {[%clk
0:02:10.7]} 19... Rxd8 {[%clk 0:01:24.2]} 20. Be3 {[%clk 0:02:10.7]} 20... Ne4
{[%clk 0:01:21.6]} 21. c4 {[%clk 0:02:10.3]} 21... f6 {[%clk 0:01:13.8]} 22. Rc1
{[%clk 0:02:07.1]} 22... Re8 {[%clk 0:01:09.8]} 23. Kf1 {[%clk 0:02:01.2]} 23...
Kf7 {[%clk 0:01:09.6]} 24. c5 {[%clk 0:01:53.7]} 24... bxc5 {[%clk 0:01:01.7]}
25. Bxc5 {[%clk 0:01:54.6]} 25... a5 {[%clk 0:00:52.4]} 26. Be3 {[%clk 0:01:50]}
26... Re5 {[%clk 0:00:52]} 27. Rc7+ {[%clk 0:01:46.9]} 27... Kg6 {[%clk
0:00:51.6]} 28. Kg2 {[%clk 0:01:45]} 28... h5 {[%clk 0:00:49.7]} 29. h4 {[%clk
0:01:44.5]} 29... Rd5 {[%clk 0:00:48.6]} 30. Ra7 {[%clk 0:01:42.2]} 30... Nc3
{[%clk 0:00:44.8]} 31. Bb6 {[%clk 0:01:34.9]} 31... a4 {[%clk 0:00:41.8]} 32. e3
{[%clk 0:01:31.6]} 32... Rd1 {[%clk 0:00:23.7]} 33. Bd4 {[%clk 0:01:26.4]} 33...
Ne4 {[%clk 0:00:20.8]} 34. Kf3 {[%clk 0:01:21.4]} 34... Nd6 {[%clk 0:00:09.7]}
35. Rxa4 {[%clk 0:01:20.3]} 35... Rd2 {[%clk 0:00:10.4]} 36. Ra6 {[%clk
0:01:12.8]} 36... Nf5 {[%clk 0:00:08.3]} 37. Bc5 {[%clk 0:01:09.8]} 37... Nh6
{[%clk 0:00:07.4]} 38. a4 {[%clk 0:01:02.5]} 38... Ng4 {[%clk 0:00:07.5]} 39. e4
{[%clk 0:01:03.1]} 39... Rc2 {[%clk 0:00:06.7]} 40. Be3 {[%clk 0:01:02.4]} 40...
Rc4 {[%clk 0:00:04.1]} 41. a5 {[%clk 0:00:59.2]} 41... Ne5+ {[%clk 0:00:03.3]}
42. Kg2 {[%clk 0:00:57.8]} 42... Rxe4 {[%clk 0:00:03.3]} 43. Re6 {[%clk
0:00:56]} 43... Ra4 {[%clk 0:00:03.1]} 44. a6 {[%clk 0:00:56.4]} 44... Kf5
{[%clk 0:00:03.7]} 45. Rb6 {[%clk 0:00:50]} 45... Nc4 {[%clk 0:00:03.4]} 46. Rb7
{[%clk 0:00:43.2]} 46... Nxe3+ {[%clk 0:00:02.8]} 47. fxe3 {[%clk 0:00:44.1]}
47... Rxa6 {[%clk 0:00:01.4]} 48. Rxg7 {[%clk 0:00:44.5]} 48... Ke4 {[%clk
0:00:01.8]} 49. Re7+ {[%clk 0:00:44.1]} 49... Kf5 {[%clk 0:00:02.3]} 50. Kf3
{[%clk 0:00:44.5]} 50... Kg6 {[%clk 0:00:02.7]} 51. Kf4 {[%clk 0:00:43.5]} 51...
Ra4+ {[%clk 0:00:02.6]} 52. Re4 {[%clk 0:00:42]} 52... Ra1 {[%clk 0:00:02.5]}
53. Rb4 {[%clk 0:00:42.3]} 53... Rf1+ {[%clk 0:00:02.7]} 54. Ke4 {[%clk
0:00:42.7]} 54... Rg1 {[%clk 0:00:03.1]} 55. Kf3 {[%clk 0:00:42.9]} 55... Rf1+
{[%clk 0:00:03.6]} 56. Kg2 {[%clk 0:00:43]} 56... Re1 {[%clk 0:00:04.2]} 57. Kf2
{[%clk 0:00:43.4]} 57... Ra1 {[%clk 0:00:04.5]} 58. Rb2 {[%clk 0:00:43]} 58...
Rc1 {[%clk 0:00:04.5]} 59. Rd2 {[%clk 0:00:41.6]} 59... Ra1 {[%clk 0:00:04.6]}
60. Kf3 {[%clk 0:00:41.8]} 60... Rf1+ {[%clk 0:00:04.5]} 61. Kg2 {[%clk
0:00:42]} 61... Re1 {[%clk 0:00:04.9]} 62. Kf2 {[%clk 0:00:42.4]} 62... Rh1
{[%clk 0:00:04.9]} 63. Rd8 {[%clk 0:00:41.7]} 63... Rh2+ {[%clk 0:00:04.5]} 64.
Kf3 {[%clk 0:00:41.7]} 64... Rh1 {[%clk 0:00:05]} 65. e4 {[%clk 0:00:41.8]}
65... Rf1+ {[%clk 0:00:05.2]} 66. Ke2 {[%clk 0:00:42]} 66... Ra1 {[%clk
0:00:04.9]} 67. Rd6 {[%clk 0:00:41.6]} 67... Ra2+ {[%clk 0:00:03.1]} 68. Kf3
{[%clk 0:00:41.9]} 68... Ra3+ {[%clk 0:00:02.2]} 69. Kg2 {[%clk 0:00:39]} 69...
Ra2+ {[%clk 0:00:02.5]} 70. Kh3 {[%clk 0:00:39.5]} 70... Re2 {[%clk 0:00:02.6]}
71. Rd4 {[%clk 0:00:37.5]} 71... Kf7 {[%clk 0:00:02.7]} 72. Ra4 {[%clk
0:00:36.4]} 72... Kg6 {[%clk 0:00:03]} 73. Rb4 {[%clk 0:00:34.6]} 73... Kf7
{[%clk 0:00:03.2]} 74. g4 {[%clk 0:00:34.2]} 74... Re3+ {[%clk 0:00:03.1]} 75.
Kg2 {[%clk 0:00:34.3]} 75... hxg4 {[%clk 0:00:03.7]} 76. h5 {[%clk 0:00:29.2]}
76... Kg7 {[%clk 0:00:03.7]} 77. Rb5 {[%clk 0:00:24.3]} 77... Kh6 {[%clk
0:00:03.6]} 78. Rf5 {[%clk 0:00:23.1]} 78... Rxe4 {[%clk 0:00:04.1]} 79. Kg3
{[%clk 0:00:23.5]} 79... Kg7 {[%clk 0:00:03.6]} 80. Kh4 {[%clk 0:00:22.4]} 80...
Kf7 {[%clk 0:00:02.8]} 81. Ra5 {[%clk 0:00:20.7]} 81... Kg7 {[%clk 0:00:02.4]}
82. Rf5 {[%clk 0:00:19.3]} 82... Rd4 {[%clk 0:00:02.8]} 83. Rb5 {[%clk
0:00:18.8]} 83... Rf4 {[%clk 0:00:03.2]} 84. Rb8 {[%clk 0:00:16.3]} 84... f5
{[%clk 0:00:02.5]} 85. Kg5 {[%clk 0:00:16.8]} 85... Ra4 {[%clk 0:00:02.6]} 86.
Rb7+ {[%clk 0:00:17.7]} 86... Kg8 {[%clk 0:00:03]} 87. Kxf5 {[%clk 0:00:16.5]}
87... Ra6 {[%clk 0:00:03.2]} 88. Kxg4 {[%clk 0:00:15]} 88... Kh8 {[%clk
0:00:03.5]} 89. Rb4 {[%clk 0:00:14.5]} 89... Kg8 {[%clk 0:00:03.8]} 90. Kg5
{[%clk 0:00:14.9]} 90... Kh8 {[%clk 0:00:04.3]} 91. Rb5 {[%clk 0:00:13.7]} 91...
Kg8 {[%clk 0:00:04.4]} 92. Kg4 {[%clk 0:00:13.6]} 92... Kh8 {[%clk 0:00:04.7]}
93. Kh4 {[%clk 0:00:13.5]} 93... Kg8 {[%clk 0:00:05.2]} 94. Rf5 {[%clk
0:00:12.1]} 94... Kh8 {[%clk 0:00:05.6]} 95. Kg5 {[%clk 0:00:12.5]} 95... Kg8
{[%clk 0:00:06]} 96. Rf6 {[%clk 0:00:12.9]} 96... Rxf6 {[%clk 0:00:04.7]} 97.
Kxf6 {[%clk 0:00:13.4]} 97... Kh7 {[%clk 0:00:05.3]} 98. h6 {[%clk 0:00:13.8]}
98... Kxh6 {[%clk 0:00:05.6]} 1/2-1/2

[Event "*** Titled Tuesday Blitz"]
[Site "Chess.com"]
[Date "2021.02.09"]
[Round "9"]
[White "Gusarov91"]
[Black "ljuks68"]
[Result "1/2-1/2"]
[WhiteElo "2243"]
[BlackElo "2378"]
[TimeControl "180+1"]
[EndTime "11:47:41 PST"]
[Termination "Game drawn by stalemate"]

1. d4 {[%clk 0:03:00.9]} 1... d5 {[%clk 0:02:59.2]} 2. Nf3 {[%clk 0:03:01.1]}
2... Nf6 {[%clk 0:02:59.3]} 3. c4 {[%clk 0:03:01]} 3... c6 {[%clk 0:02:59.4]} 4.
Nc3 {[%clk 0:03:00.9]} 4... dxc4 {[%clk 0:02:59.2]} 5. a4 {[%clk 0:03:01.2]}
5... Bf5 {[%clk 0:02:58.6]} 6. e3 {[%clk 0:03:01.8]} 6... e6 {[%clk 0:02:58.2]}
7. Bxc4 {[%clk 0:03:02]} 7... Bb4 {[%clk 0:02:58.5]} 8. O-O {[%clk 0:03:01.9]}
8... Nbd7 {[%clk 0:02:58.7]} 9. Qe2 {[%clk 0:03:02.5]} 9... O-O {[%clk
0:02:57.9]} 10. e4 {[%clk 0:03:01.5]} 10... Bg4 {[%clk 0:02:57.5]} 11. e5 {[%clk
0:03:01.4]} 11... Nd5 {[%clk 0:02:57]} 12. Nxd5 {[%clk 0:03:01.7]} 12... exd5
{[%clk 0:02:57.1]} 13. Bd3 {[%clk 0:03:02.6]} 13... f6 {[%clk 0:02:57.5]} 14.
exf6 {[%clk 0:02:33.8]} 14... Qxf6 {[%clk 0:02:56.4]} 15. Qc2 {[%clk 0:02:12.9]}
15... h6 {[%clk 0:02:30.7]} 16. Ne5 {[%clk 0:02:06.7]} 16... Nxe5 {[%clk
0:02:20]} 17. dxe5 {[%clk 0:02:07.6]} 17... Qxe5 {[%clk 0:02:19.8]} 18. Qb3
{[%clk 0:02:06.3]} 18... Bd6 {[%clk 0:02:18.5]} 19. g3 {[%clk 0:01:51]} 19...
Bh3 {[%clk 0:02:17.9]} 20. Rd1 {[%clk 0:01:49.7]} 20... Rf7 {[%clk 0:02:17.8]}
21. Be3 {[%clk 0:01:44.2]} 21... Raf8 {[%clk 0:02:15.8]} 22. Bg6 {[%clk
0:01:33.3]} 22... Rxf2 {[%clk 0:02:06.8]} 23. Bxf2 {[%clk 0:01:31]} 23... Rxf2
{[%clk 0:02:06.5]} 24. Kxf2 {[%clk 0:01:07.4]} 24... Bc5+ {[%clk 0:02:05.1]} 25.
Kf3 {[%clk 0:01:07.8]} 25... Qf6+ {[%clk 0:01:29.8]} 26. Ke2 {[%clk 0:01:07.4]}
26... Qxg6 {[%clk 0:01:22.6]} 27. Qd3 {[%clk 0:00:44.1]} 27... Bf5 {[%clk
0:01:10.5]} 28. Qc3 {[%clk 0:00:40.1]} 28... Bg4+ {[%clk 0:00:45.3]} 29. Kd2
{[%clk 0:00:39.5]} 29... Qg5+ {[%clk 0:00:33.7]} 30. Kc2 {[%clk 0:00:39.6]}
30... Bxd1+ {[%clk 0:00:32.4]} 31. Rxd1 {[%clk 0:00:40.5]} 31... Bd6 {[%clk
0:00:30]} 32. Kb3 {[%clk 0:00:39.3]} 32... Be5 {[%clk 0:00:27.2]} 33. Qd3 {[%clk
0:00:38]} 33... Bf6 {[%clk 0:00:26.5]} 34. Ka2 {[%clk 0:00:38]} 34... Qe5 {[%clk
0:00:25.8]} 35. Rd2 {[%clk 0:00:38.6]} 35... d4 {[%clk 0:00:25.7]} 36. Re2
{[%clk 0:00:38.2]} 36... Qd5+ {[%clk 0:00:25.7]} 37. Qb3 {[%clk 0:00:38.8]}
37... Qxb3+ {[%clk 0:00:24.6]} 38. Kxb3 {[%clk 0:00:39.7]} 38... Kf7 {[%clk
0:00:25.1]} 39. Kc4 {[%clk 0:00:40.2]} 39... Kg6 {[%clk 0:00:23.1]} 40. b4
{[%clk 0:00:37.9]} 40... Kf5 {[%clk 0:00:22.7]} 41. h3 {[%clk 0:00:36.8]} 41...
Be5 {[%clk 0:00:21.6]} 42. g4+ {[%clk 0:00:37.4]} 42... Ke6 {[%clk 0:00:21.8]}
43. b5 {[%clk 0:00:37.1]} 43... Kd6 {[%clk 0:00:21.1]} 44. bxc6 {[%clk
0:00:36.7]} 44... bxc6 {[%clk 0:00:21.3]} 45. Rf2 {[%clk 0:00:36.8]} 45... Bf6
{[%clk 0:00:20.9]} 46. Rf5 {[%clk 0:00:36.4]} 46... Kc7 {[%clk 0:00:19.1]} 47.
Kc5 {[%clk 0:00:35.4]} 47... Kb7 {[%clk 0:00:14.6]} 48. Rf4 {[%clk 0:00:31.9]}
48... Kc7 {[%clk 0:00:14.1]} 49. Re4 {[%clk 0:00:29.8]} 49... Kb7 {[%clk
0:00:13.2]} 50. Re6 {[%clk 0:00:27.6]} 50... d3 {[%clk 0:00:11.7]} 51. Re3
{[%clk 0:00:25.8]} 51... d2 {[%clk 0:00:11.5]} 52. Rd3 {[%clk 0:00:26.2]} 52...
Bg5 {[%clk 0:00:12]} 53. h4 {[%clk 0:00:24.8]} 53... Bf4 {[%clk 0:00:11.9]} 54.
Kc4 {[%clk 0:00:20.9]} 54... Kb6 {[%clk 0:00:10.5]} 55. Kb3 {[%clk 0:00:21.3]}
55... Ka5 {[%clk 0:00:09.8]} 56. Rd7 {[%clk 0:00:20.1]} 56... c5 {[%clk
0:00:08.5]} 57. Kc2 {[%clk 0:00:20.3]} 57... Be5 {[%clk 0:00:06.4]} 58. Rxa7+
{[%clk 0:00:19.5]} 58... Kb4 {[%clk 0:00:06.6]} 59. Kxd2 {[%clk 0:00:18.7]}
59... c4 {[%clk 0:00:06.9]} 60. Kc2 {[%clk 0:00:19.1]} 60... c3 {[%clk
0:00:07.1]} 61. a5 {[%clk 0:00:18.4]} 61... Kb5 {[%clk 0:00:06.7]} 62. a6 {[%clk
0:00:19]} 62... Kb6 {[%clk 0:00:06.7]} 63. Re7 {[%clk 0:00:19.3]} 63... Bf6
{[%clk 0:00:05.9]} 64. Re6+ {[%clk 0:00:19.9]} 64... Ka7 {[%clk 0:00:06]} 65. h5
{[%clk 0:00:20.8]} 65... Bd4 {[%clk 0:00:05.4]} 66. Re7+ {[%clk 0:00:20.5]}
66... Kxa6 {[%clk 0:00:03.8]} 67. Re4 {[%clk 0:00:21.4]} 67... Bf6 {[%clk
0:00:03.7]} 68. Rb4 {[%clk 0:00:21.1]} 68... Ka5 {[%clk 0:00:03.3]} 69. Rb8
{[%clk 0:00:21.2]} 69... Ka6 {[%clk 0:00:04.1]} 70. Rb1 {[%clk 0:00:21.2]} 70...
Ka7 {[%clk 0:00:04.4]} 71. Kd3 {[%clk 0:00:21.7]} 71... Ka6 {[%clk 0:00:04.9]}
72. Kc4 {[%clk 0:00:22.2]} 72... Ka7 {[%clk 0:00:05.5]} 73. Kc5 {[%clk
0:00:22.6]} 73... Ka6 {[%clk 0:00:06.1]} 74. Kc6 {[%clk 0:00:22.8]} 74... Ka5
{[%clk 0:00:05.8]} 75. Kc5 {[%clk 0:00:22.8]} 75... Ka4 {[%clk 0:00:06.1]} 76.
Kc4 {[%clk 0:00:23]} 76... Ka3 {[%clk 0:00:06.6]} 77. Kd3 {[%clk 0:00:23.3]}
77... Ka2 {[%clk 0:00:07]} 78. Kc2 {[%clk 0:00:23.9]} 78... Ka3 {[%clk
0:00:07.3]} 79. Rb7 {[%clk 0:00:24.5]} 79... Ka4 {[%clk 0:00:07.6]} 80. Rf7
{[%clk 0:00:23.9]} 80... Ka5 {[%clk 0:00:08.5]} 81. g5 {[%clk 0:00:23.9]} 81...
Bxg5 {[%clk 0:00:07]} 82. Rxg7 {[%clk 0:00:24]} 82... Bd2 {[%clk 0:00:07.5]} 83.
Rg6 {[%clk 0:00:24.2]} 83... Kb5 {[%clk 0:00:08]} 84. Rd6 {[%clk 0:00:24.5]}
84... Kc5 {[%clk 0:00:08.4]} 85. Rd7 {[%clk 0:00:25.1]} 85... Kc6 {[%clk
0:00:08.3]} 86. Rd3 {[%clk 0:00:25.7]} 86... Kc5 {[%clk 0:00:08.5]} 87. Rd8
{[%clk 0:00:25.5]} 87... Kc6 {[%clk 0:00:08.7]} 88. Kd3 {[%clk 0:00:25.7]} 88...
Kc5 {[%clk 0:00:08.7]} 89. Rc8+ {[%clk 0:00:25.6]} 89... Kd6 {[%clk 0:00:08.6]}
90. Ra8 {[%clk 0:00:24.8]} 90... Ke5 {[%clk 0:00:08.7]} 91. Ra5+ {[%clk
0:00:25.4]} 91... Kf4 {[%clk 0:00:08.9]} 92. Rb5 {[%clk 0:00:25.8]} 92... Kg4
{[%clk 0:00:08.2]} 93. Kc2 {[%clk 0:00:26.1]} 93... Kh4 {[%clk 0:00:08]} 94. Rc5
{[%clk 0:00:26.3]} 94... Kg4 {[%clk 0:00:08.1]} 95. Rd5 {[%clk 0:00:26.7]} 95...
Kh4 {[%clk 0:00:08.4]} 96. Kd1 {[%clk 0:00:27.1]} 96... Kg4 {[%clk 0:00:08.4]}
97. Ke2 {[%clk 0:00:27.5]} 97... Kh4 {[%clk 0:00:06.8]} 98. Rc5 {[%clk
0:00:27.9]} 98... Kg4 {[%clk 0:00:06.9]} 99. Kf2 {[%clk 0:00:28.1]} 99... Kh4
{[%clk 0:00:06.5]} 100. Kf3 {[%clk 0:00:28.5]} 100... Kh3 {[%clk 0:00:04.7]}
101. Rc4 {[%clk 0:00:29]} 101... Kh2 {[%clk 0:00:03.5]} 102. Kg4 {[%clk
0:00:29.4]} 102... Kg1 {[%clk 0:00:03.9]} 103. Kf5 {[%clk 0:00:28.6]} 103... Kf1
{[%clk 0:00:03.9]} 104. Kg6 {[%clk 0:00:28.8]} 104... Ke1 {[%clk 0:00:04.2]}
105. Re4+ {[%clk 0:00:27.6]} 105... Kd1 {[%clk 0:00:04.2]} 106. Rc4 {[%clk
0:00:25.6]} 106... c2 {[%clk 0:00:04.4]} 107. Rxc2 {[%clk 0:00:25.3]} 107...
Kxc2 {[%clk 0:00:04.3]} 108. Kf5 {[%clk 0:00:26.2]} 108... Kd1 {[%clk
0:00:05.2]} 109. Kg4 {[%clk 0:00:27.1]} 109... Ke1 {[%clk 0:00:05.7]} 110. Kh3
{[%clk 0:00:28]} 110... Kf1 {[%clk 0:00:06.2]} 111. Kh2 {[%clk 0:00:28.9]}
111... Bf4+ {[%clk 0:00:06.3]} 112. Kh1 {[%clk 0:00:29]} 112... Be5 {[%clk
0:00:06.5]} 1/2-1/2